lending/lending_fUSD_20240207
["ID","MTS","AMOUNT","RATE_DAILY","PERIOD"]
[313432023,1707341442445,-38978.6024132,0.00047798,11]
[313432024,1707341442456,-500.0,0.00047799,120]
[313432025,1707341442466,-500.0,0.00047799,120]
[313432026,1707341442476,-500.0,0.00047799,120]
[313432027,1707341442485,-500.0,0.00047799,120]
[313432028,1707341442495,-164.09684441,0.00047799,120]
[313432029,1707341442504,-8036.48868373,0.00047808,4]
[313432030,1707341442514,-128892.41437709,0.00047808,2]
[313432031,1707341442523,-1831.53,0.0004781,5]
[313432032,1707341442535,-372.87193149,0.00047835,13]
[313432033,1707341442545,-150.0,0.0004789,2]
[313432034,1707341442554,-1000.0,0.000479,57]
[313432035,1707341442563,-50000.0,0.00048,38]
[313432036,1707341442573,-177.04,0.00048,2]
[313432037,1707341442582,-561.43098937,0.00048119,2]
[313432038,1707341442592,-372.87193149,0.00048163,13]
[313432039,1707341442601,-500.0,0.00048219,45]
[313432040,1707341442610,-962.14280511,0.0004824,4]
[313432041,1707341442620,-1034.8447963,0.00048322,2]
[313432042,1707341442629,-155.03,0.00048325,2]
[313432043,1707341442638,-1787.43,0.00048341,5]
[313432044,1707341442648,-6382.0,0.0004849,30]
[313432045,1707341442657,-214.0,0.0004849,2]
[313432046,1707341442666,-372.87193149,0.0004849,13]
[313432047,1707341442676,-1400.0,0.000485,30]
[313432048,1707341442686,-2314.07478739,0.00048506,4]
[313432049,1707341442695,-247.42374992,0.00048508,4]
[313432050,1707341442705,-153.04798605,0.00048509,2]
[313432052,1707341442715,-2361.09160467,0.0004851,2]
[313432054,1707341442724,-177.04,0.00048548,2]
[313432056,1707341442734,-1034.8447963,0.00048564,2]
[313432058,1707341442743,-800.0,0.00048574,20]
[313432061,1707341442752,-800.0,0.00048586,20]
[313432064,1707341442762,-800.0,0.00048597,20]
[313432067,1707341442771,-1307.0,0.000487,117]
[313432070,1707341442782,-150.0,0.00048735,7]
[313432072,1707341442792,-300.0,0.00048739,7]
[313432074,1707341442803,-150.0,0.00048741,7]
[313432077,1707341442814,-150.0,0.00048752,7]
[313432080,1707341442823,-200.0,0.00048755,11]
[313432084,1707341442832,-1500.0,0.00048758,7]
[313432086,1707341442842,-12000.0,0.00048765,8]
[313432088,1707341442853,-500.0,0.00048767,50]
[313432090,1707341442862,-150.0,0.00048798,7]
[313432092,1707341442872,-150.0,0.00048799,7]
[313432094,1707341442883,-150.0,0.00048808,7]
[313432096,1707341442893,-372.87193149,0.00048818,13]
[313432098,1707341442902,-150.0,0.00048821,7]
[313432100,1707341442912,-150.0,0.00048823,7]
[313432102,1707341442922,-150.0,0.00048825,7]
[313432104,1707341442932,-150.0,0.00048826,7]
[313432106,1707341442942,-150.0,0.00048827,7]
[313432108,1707341442951,-150.0,0.00048828,7]
[313432110,1707341442960,-150.0,0.0004885,7]
[313432112,1707341442970,-150.0,0.00048855,7]
[313432114,1707341442980,-150.0,0.00048877,7]
[313432116,1707341442990,-152.85800901,0.00048889,120]
[313432118,1707341442999,-201.60973994,0.0004889,25]
[313432120,1707341443009,-72304.3440505,0.0004889,11]
[313432122,1707341443019,-22422.0,0.0004889,2]
[313432124,1707341443028,-15874.0,0.0004889,3]
[313432126,1707341443038,-401.0,0.0004889,2]
[313432128,1707341443047,-210.0,0.0004889,3]
[313432130,1707341443057,-150.0,0.00048892,7]
[313432132,1707341443066,-296.6922,0.00048896,2]
[313432134,1707341443075,-153.59319508,0.00048897,40]
[313432136,1707341443084,-150.0,0.00048897,7]
[313432138,1707341443095,-1689.31156337,0.00048899,2]
[313432140,1707341443104,-4669.27010341,0.00048899,2]
[313432142,1707341443114,-217.76953088,0.000489,25]
[313432144,1707341443122,-1000.0,0.000489,59]
[313432146,1707341443132,-5000.0,0.000489,7]
[313432148,1707341443142,-927.0834696,0.000489,14]
[313432150,1707341443151,-150.0,0.00048902,7]
[313432152,1707341443160,-150.0,0.00048906,7]
[313432154,1707341443170,-156.29371843,0.00048908,7]
[313432156,1707341443180,-150.0,0.00048918,7]
[313432158,1707341443189,-150.0,0.00048932,7]
[313432160,1707341443199,-1500.0,0.00048935,7]
[313432162,1707341443208,-150.0,0.00048936,7]
[313432163,1707341443217,-150.0,0.00048937,7]
[313432164,1707341443227,-150.0,0.00048941,7]
[313432165,1707341443237,-150.0,0.00048942,7]
[313432166,1707341443247,-150.0,0.00048955,7]
[313432169,1707341443256,-150.0,0.00048959,7]
[313432172,1707341443266,-150.0,0.0004896,7]
[313432173,1707341443276,-201.60973992,0.00048973,25]
[313432175,1707341443285,-150.0,0.00048977,7]
[313432178,1707341443295,-1017.34,0.00048979,15]
[313432180,1707341443305,-216913.032151,0.0004898,11]
[313432183,1707341443316,-72304.3440505,0.0004898,11]
[313432185,1707341443326,-248.31541942,0.00048986,30]
[313432187,1707341443336,-150.0,0.00048986,30]
[313432189,1707341443347,-144608.688101,0.00048989,11]
[313432191,1707341443357,-3310.68912683,0.00048989,2]
[313432193,1707341443368,-150.01,0.00048989,2]
[313432196,1707341443378,-72304.3440505,0.0004899,11]
[313432198,1707341443388,-209.0,0.0004899,30]
[313432200,1707341443399,-210.0,0.0004899,30]
[313432202,1707341443408,-776.10597,0.0004899,44]
[313432204,1707341443417,-3762.0,0.0004899,2]
[313432206,1707341443426,-793.5294564,0.00048995,4]
[313432208,1707341443436,-289.88703707,0.00048996,4]
[313432210,1707341443447,-3148.06260981,0.00048996,4]
[313432212,1707341443458,-41413.46873925,0.00048996,30]
[313432214,1707341443467,-156.44943752,0.00048996,4]
[313432216,1707341443476,-202.58320216,0.00048997,30]
[313432218,1707341443486,-500.79305704,0.00048997,4]
[313432220,1707341443495,-215.26109869,0.00048997,4]
[313432222,1707341443505,-1027.22139726,0.00048997,4]
[313432224,1707341443514,-759.85100312,0.00048997,4]
[313432226,1707341443523,-155.0,0.00048997,4]
[313432228,1707341443532,-768.55606507,0.00048997,2]
[313432230,1707341443542,-4325.34904083,0.00048997,4]
[313432232,1707341443551,-3059.27150435,0.00048997,4]
[313432234,1707341443560,-475.08618262,0.00048997,4]
[313432236,1707341443570,-155.0,0.00048997,4]
[313432238,1707341443579,-379.18959888,0.00048998,2]
[313432240,1707341443589,-257.20873955,0.00048998,4]
[313432242,1707341443600,-338.34278266,0.00048998,5]
[313432244,1707341443609,-464.41273795,0.00048998,4]
[313432245,1707341443618,-2431.45063319,0.00048998,4]
[313432247,1707341443627,-168.92916761,0.00048999,7]
[313432249,1707341443637,-2254.01598321,0.00048999,3]
[313432251,1707341443647,-197208.73203593,0.00048999,2]
[313432253,1707341443655,-76156.80910806,0.00048999,2]
[313432255,1707341443666,-1901.32518703,0.00048999,4]
[313432257,1707341443676,-150.0,0.00048999,8]
[313432259,1707341443685,-166.62406595,0.00048999,8]
[313432261,1707341443694,-225.89411431,0.00048999,8]
[313432262,1707341443703,-150.0,0.00048999,7]
[313432263,1707341443713,-150.0,0.00048999,7]
[313432264,1707341443722,-50000.0,0.00049,39]
[313432265,1707341443731,-4365.46744836,0.00049,2]
[313432266,1707341443740,-780070.16743786,0.00049,3]
[313432267,1707341443749,-1810.85,0.00049,5]
[313432268,1707341443758,-171998.12793115,0.00049,30]
[313432269,1707341443768,-33901.86020806,0.00049,30]
[313432270,1707341443777,-2000.0,0.00049,30]
[313432271,1707341443786,-998.5987,0.00049,30]
[313432272,1707341443795,-1425.0,0.00049,2]
[313432273,1707341443807,-9637.46797658,0.00049,5]
[313432274,1707341443817,-45000.0,0.00049,30]
[313432275,1707341443826,-422.65,0.00049,7]
[313432276,1707341443835,-424.89878707,0.00049,120]
[313432277,1707341443846,-2038.97057684,0.00049,120]
[313432278,1707341443855,-300.0,0.00049,50]
[313432279,1707341443865,-200.0,0.00049,30]
[313432280,1707341443874,-284.0,0.00049,30]
[313432281,1707341443884,-4500.0,0.00049,5]
[313432282,1707341443893,-758.53412042,0.00049,4]
[313432283,1707341443902,-250.0,0.00049,26]
[313432284,1707341443912,-150.0,0.00049,23]
[313432285,1707341443921,-150.0,0.00049,29]
[313432286,1707341443930,-208.399545,0.00049,29]
[313432287,1707341443939,-150.0,0.00049,29]
[313432288,1707341443948,-1921.586028,0.00049,29]
[313432289,1707341443957,-1004190.0,0.00049,120]
[313432290,1707341443966,-430.43144906,0.00049,30]
[313432291,1707341443976,-185.455454,0.00049,2]
[313432292,1707341443986,-150.0,0.00049,20]
[313432293,1707341443995,-258.11,0.00049,60]
[313432294,1707341444004,-395.34,0.00049,120]
[313432295,1707341444014,-1119.55,0.00049,120]
[313432296,1707341444024,-300.0,0.00049,26]
[313432297,1707341444033,-1000000.0,0.0004902,30]
[313432298,1707341444043,-7999.99,0.00049022,30]
[313432299,1707341444052,-2037.1387911,0.00049022,2]
[313432300,1707341444061,-44738.0728941,0.00049022,2]
[313432301,1707341444071,-900.9611196,0.00049022,2]
[313432302,1707341444080,-1000000.0,0.0004905,30]
[313432303,1707341444090,-201.60973992,0.00049055,25]
[313432304,1707341444101,-5000.0,0.0004906,120]
[313432305,1707341444110,-1000000.0,0.0004908,30]
[313432306,1707341444119,-150.0,0.00049091,2]
[313432307,1707341444129,-191.76082114,0.00049096,2]
[313432308,1707341444138,-82303.05643611,0.000491,30]
[313432309,1707341444163,-300.2274635,0.000491,30]
[313432310,1707341444175,-22827.9622108,0.000491,30]
[313432311,1707341444395,-4182.00000001,0.000491,30]
[313432312,1707341444445,-1107.165,0.000491,30]
[313432313,1707341444457,-49996.25057702,0.000491,30]
[313432314,1707341444767,1102.12865025,0.00026492,2]
[313432315,1707341445015,-2314.46229003,0.00043996,4]
[313432316,1707341445025,-1263.45893398,0.00043996,4]
[313432317,1707341445034,-15294.07499162,0.000491,30]
[313432318,1707341445054,-261.28269064,0.000491,30]
[313432319,1707341445069,-823727.9806303,0.000491,30]
[313432320,1707341445078,-283537.06133974,0.0004912,30]
[313432321,1707341445161,-370788.45157415,0.0004912,30]
[313432322,1707341445172,-1697.87382178,0.0004912,30]
[313432323,1707341445246,-3004.52672408,0.0004912,30]
[313432324,1707341445281,268.31807062,0.00026492,2]
[313432325,1707341445367,209.9487834,0.00026492,2]
[313432326,1707341445529,241.67425592,0.00026492,2]
[313432327,1707341445564,155.0,0.00026492,2]
[313432331,1707341446350,226.16609982,0.00026492,2]
[313432332,1707341446363,-444.93409932,0.00043995,4]
[313432333,1707341446372,-148.41150389,0.00043996,4]
[313432334,1707341446384,-1111.93190577,0.00043996,4]
[313432335,1707341446393,-2868.25258016,0.00046029,2]
[313432336,1707341446421,-467.08892496,0.00046029,2]
[313432337,1707341446434,-715.47138881,0.00046029,2]
[313432338,1707341446450,-320.9360001,0.00046029,2]
[313432339,1707341446465,-570.158,0.00046029,2]
[313432340,1707341446476,-10082.53316466,0.00046029,2]
[313432341,1707341446496,-2568.75745,0.00046029,2]
[313432342,1707341446610,-1185.4540239,0.00046029,2]
[313432343,1707341446625,-832.89240319,0.00046029,2]
[313432344,1707341446636,-530.64723781,0.00046029,2]
[313432345,1707341446649,-2826.95,0.00046029,2]
[313432346,1707341446660,-870.2257524,0.00046029,2]
[313432347,1707341446788,-60.63307401,0.00046029,2]
[313432348,1707341446798,-1077.66669131,0.0004749,2]
[313432349,1707341446810,-1091.65548484,0.00048899,2]
[313432350,1707341446819,-896.60943409,0.00048996,4]
[313432351,1707341446829,-181.92914386,0.00048996,4]
[313432352,1707341446838,-1400.0,0.000491,30]
[313432353,1707341446850,-8593.10319083,0.0004912,30]
[313432354,1707341446862,-547.44,0.0004912,30]
[313432355,1707341446875,-496.29699686,0.0004912,30]
[313432356,1707341447021,216.10544186,0.00026492,2]
[313432357,1707341448286,165.1862054,0.00039596,2]
[313432358,1707341448456,682.2106328,0.00039596,2]
[313432359,1707341453728,151.64,0.00038356,2]
[313432360,1707341459158,887.79146733,0.00026492,2]
[313432361,1707341461187,342.32349912,0.00026492,2]
[313432362,1707341462322,184.78239337,0.00026492,2]
[313432363,1707341464947,209.39399773,0.00026492,2]
[313432364,1707341476488,18730.61687804,0.00038356,2]
[313432365,1707341476778,1192.81003289,0.00038356,4]
[313432366,1707341483719,324.08880532,0.00036438,2]
[313432367,1707341484880,1581.01022371,0.00038356,2]
[313432368,1707341492762,1226.36645499,0.00033285,28]
[313432369,1707341494789,1192.81003289,0.00038356,4]
[313432370,1707341510815,176.7,0.00025053,2]
[313432371,1707341516781,263.51042516,0.00038356,4]
[313432372,1707341707403,-490.45486203,0.00023446,2]
[313432373,1707341707424,-477.75443784,0.00023447,2]
[313432374,1707341707444,-218.8763012,0.00023448,2]
[313432375,1707341707466,-208.06184084,0.00023448,2]
[313432376,1707341707487,-184.61277895,0.00023449,2]
[313432377,1707341707508,-166.95,0.00023549,2]
[313432378,1707341707528,-7942.57,0.00023549,2]
[313432379,1707341707550,-184.85550593,0.00024761,2]
[313432380,1707341707570,-150.0,0.00024861,2]
[313432381,1707341707590,-10918.43534476,0.00024862,2]
[313432382,1707341707613,-184.85550584,0.00026047,2]
[313432383,1707341707634,-150.0,0.00026079,2]
[313432384,1707341707654,-184.85550584,0.00027334,2]
[313432385,1707341707674,-210.0,0.00027347,2]
[313432386,1707341707694,-184.85550584,0.0002862,2]
[313432387,1707341711822,184.85550584,0.00029906,2]
[313432388,1707341831981,1000.0,0.00023549,2]
[313432389,1707341832674,1000.0,0.00026493,2]
[313432390,1707341832728,1000.0,0.00029436,2]
[313432391,1707341976206,500.0,0.00023549,2]
[313432392,1707341979153,699.57,0.00023549,2]
[313432393,1707341979349,699.57,0.00025193,2]
[313432394,1707341979818,699.57,0.00026837,2]
[313432395,1707341979905,699.57,0.0002848,2]
[313432396,1707341979950,200.0,0.00023549,2]
[313432397,1707342009909,250.0,0.00024658,2]
[313432398,1707342050257,250.0,0.00023549,2]
[313432399,1707342124697,350.0,0.00025,3]
[313432400,1707342125830,400.0,0.00027,3]
[313432401,1707342126957,450.0,0.00029,3]
[313432402,1707342133675,1006.08960501,0.00029967,2]
[313432403,1707342213137,1274.78,0.00023549,2]
[313432404,1707342257424,161.18,0.00023726,2]
[313432405,1707342257772,161.18,0.00024035,2]
[313432406,1707342257972,161.18,0.00024344,2]
[313432407,1707342258200,161.18,0.00024653,2]
[313432408,1707342258402,161.18,0.00024962,2]
[313432409,1707342388055,597.69,0.00023549,2]
[313432410,1707342389819,1321.63,0.0003,2]
[313432411,1707342389840,1709.996207,0.0003,2]
[313432412,1707342390636,2290.003793,0.00023549,2]
[313432413,1707342390657,169.736207,0.00023549,2]
[313432414,1707342417420,200.0,0.00023549,2]
[313432417,1707342545108,-500.0,0.00031,3]
[313432418,1707342549941,-150.0,0.00032297,2]
[313432419,1707342549961,-1000.0,0.0003238,2]
[313432420,1707342549981,-154.28105738,0.000329,2]
[313432421,1707342550000,-250.0,0.00032926,2]
[313432422,1707342550020,-597.69,0.00032969,2]
[313432423,1707342550039,-568.55,0.00032983,2]
[313432424,1707342550059,-550.0,0.00033,3]
[313432425,1707342550079,-250.0,0.00033025,2]
[313432426,1707342550369,-500.0,0.00033149,2]
[313432427,1707342550389,-1317.7281,0.00033198,2]
[313432428,1707342550408,-192.51,0.00033287,120]
[313432429,1707342550428,-261.16604262,0.00033295,3]
[313432430,1707342557109,-38.83395738,0.00033295,3]
[313432431,1707342557131,-150.0,0.00033295,3]
[313432432,1707342557151,-499.99,0.00033296,2]
[313432433,1707342557171,-343.67,0.00033296,2]
[313432434,1707342557192,-1044.35236562,0.00033296,2]
[313432435,1707342557215,-544.90427787,0.00033297,4]
[313432436,1707342557237,-172.54144566,0.00033297,4]
[313432437,1707342557259,-191.59775398,0.00033297,4]
[313432438,1707342557281,-123.30469949,0.00033297,2]
[313432439,1707342558307,-290.32757037,0.00033297,2]
[313432440,1707342558327,-125.25351963,0.00033297,4]
[313432441,1707342563091,-263.2016294,0.00033297,4]
[313432442,1707342563110,-249.72606267,0.00033297,4]
[313432443,1707342563132,-1954.2238064,0.00033297,4]
[313432444,1707342563152,-156.45469851,0.00033297,4]
[313432445,1707342563173,-24780.30880302,0.00033297,4]
[313432449,1707342632061,-620.55230255,0.000329,2]
[313432450,1707342632073,-886.29933797,0.000329,2]
[313432451,1707342632083,-2713.80862213,0.00033297,4]
[313432452,1707342632098,-785.91318221,0.00033297,4]
[313432453,1707342632110,-832.9,0.00033297,4]
[313432454,1707342632122,-301.48,0.00033297,4]
[313432455,1707342632152,-762.71,0.00033297,4]
[313432456,1707342632164,-440.0,0.00033297,4]
[313432457,1707342632177,-653.0,0.00033297,4]
[313432458,1707342632190,-677.100004,0.00033297,4]
[313432459,1707342632215,-13054.03815243,0.00033297,4]
[313432460,1707342632226,-28706.15763528,0.00033298,2]
[313432461,1707342632237,-1083.51079046,0.00033298,2]
[313432462,1707342632249,-1017.36783253,0.00033298,2]
[313432463,1707342632261,-604.7260143,0.00033298,2]
[313432464,1707342632281,-1358.5,0.00033298,2]
[313432465,1707342632293,-397.098922,0.00033298,2]
[313432466,1707342632304,-547.40747628,0.00033298,2]
[313432467,1707342632316,-426.57131554,0.00033298,2]
[313432468,1707342634263,-576.57357286,0.00033298,2]
[313432469,1707342634274,-746.41878368,0.00033298,2]
[313432470,1707342634285,-252.22102971,0.00033298,2]
[313432471,1707342634331,-9716.58341974,0.00033298,2]
[313432472,1707342634343,-11243.44778013,0.00033298,2]
[313432500,1707342638124,-277.67104254,0.00033298,2]
[313432501,1707342638155,-24993.42799998,0.00033298,2]
[313432502,1707342638168,-67631.37326976,0.00033298,2]
[313432503,1707342638182,-1108.77575039,0.00033298,2]
[313432504,1707342638218,-69113.43333339,0.00033298,2]
[313432505,1707342638230,-2278.0,0.000333,2]
[313432506,1707342638241,-5272.0,0.000333,2]
[313432507,1707342638252,-1500.0,0.00033428,7]
[313432508,1707342638262,-299.3836741,0.00033728,6]
[313432509,1707342638272,-250.0,0.00033748,111]
[313432510,1707342638282,-154.28105727,0.00033752,2]
[313432511,1707342638293,-624.78,0.000338,2]
[313432512,1707342638303,-152.74,0.000338,2]
[313432513,1707342638313,-152.74,0.000338,2]
[313432514,1707342638324,-152.74,0.000338,2]
[313432515,1707342638334,-152.74,0.000338,2]
[313432516,1707342638345,-152.74,0.000338,2]
[313432517,1707342638355,-152.74,0.000338,2]
[313432518,1707342638366,-152.74,0.000338,2]
[313432519,1707342638376,-11702.95543159,0.00033828,10]
[313432520,1707342638386,-585.14777158,0.00033828,10]
[313432521,1707342638396,-325.12,0.00033828,15]
[313432522,1707342638406,-948.78290304,0.00033828,10]
[313432523,1707342638416,-250.83685833,0.00033828,10]
[313432524,1707342638425,-3067.03023728,0.00033909,7]
[313432525,1707342638435,-487.1015745,0.00033909,7]
[313432527,1707342638445,-206.81,0.00034019,2]
[313432529,1707342638455,-200.0,0.00034193,2]
[313432531,1707342638466,-154.28105727,0.00034605,2]
[313432532,1707342638476,-233.19,0.00034901,2]
[313432533,1707342638490,-500.0,0.00034901,2]
[313432534,1707342638500,-1693.87,0.00034901,2]
[313432535,1707342638510,-600.0,0.00035,3]
[313432536,1707342638520,-568.55,0.00035247,2]
[313432537,1707342638530,-166.95,0.00035323,2]
[313432538,1707342638540,-1000.0,0.00035323,2]
[313432539,1707342638550,-154.28105727,0.00035457,2]
[313432540,1707342638560,-192.51,0.00036026,120]
[313432541,1707342638570,-299.38367405,0.00036037,7]
[313432542,1707342638580,-154.28105727,0.0003631,2]
[313432543,1707342638591,-233.19,0.00036545,2]
[313432544,1707342638601,-650.0,0.00037,3]
[313432545,1707342638611,-150.24,0.00037024,2]
[313432546,1707342638621,-154.28105727,0.00037162,2]
[313432547,1707342638632,-568.55,0.00037511,2]
[313432548,1707342638643,-154.28105727,0.00038015,2]
[313432549,1707342638653,-233.19,0.00038189,2]
[313432550,1707342638664,-206.81,0.00038271,2]
[313432551,1707342638675,-152.74,0.000383,3]
[313432552,1707342638685,-152.74,0.000383,3]
[313432553,1707342638696,-152.74,0.000383,3]
[313432554,1707342638707,-152.74,0.000383,3]
[313432555,1707342638717,-152.74,0.000383,3]
[313432556,1707342638727,-152.74,0.000383,3]
[313432557,1707342638737,-152.74,0.000383,3]
[313432558,1707342638748,-299.38367405,0.00038346,8]
[313432559,1707342638760,-151.52,0.00038356,2]
[313432560,1707342638770,-859.39536,0.000388,4]
[313432561,1707342638781,-154.28105727,0.00038867,2]
[313432562,1707342638791,-170.61975322,0.0003888,2]
[313432563,1707342638802,-170.61975319,0.0003888,2]
[313432564,1707342638813,-150.0,0.00038966,2]
[313432565,1707342638824,-700.0,0.00039,3]
[313432566,1707342638834,-1040.46,0.00039001,2]
[313432567,1707342638845,-750.0,0.0003902,2]
[313432568,1707342638855,-150.0,0.00039187,2]
[313432569,1707342638865,-1855.49745169,0.00039412,10]
[313432570,1707342638876,-2000.0,0.00039422,2]
[313432571,1707342638886,-168.2,0.00039447,2]
[313432572,1707342638896,-1180.39,0.00039591,2]
[313432573,1707342638907,-155.0,0.00039631,7]
[313432574,1707342638917,-154.28105727,0.00039719,2]
[313432575,1707342638928,-568.55,0.00039775,2]
[313432576,1707342638938,-233.19,0.00039832,2]
[313432577,1707342638949,-154.28105727,0.00040572,2]
[313432578,1707342638959,-299.38367405,0.00040655,10]
[313432579,1707342638969,-750.0,0.00041,3]
[313432580,1707342638979,-1044.35236561,0.00041207,2]
[313432581,1707342638990,-154.28105727,0.00041424,2]
[313432582,1707342639000,-1855.49745169,0.00041466,11]
[313432583,1707342639011,-233.19,0.00041476,2]
[313432584,1707342639022,-3710.99490338,0.0004154,11]
[313432585,1707342639033,-321.27963262,0.00041549,4]
[313432586,1707342639044,-335.48851529,0.00041549,4]
[313432587,1707342639056,-583.70676499,0.00041549,4]
[313432588,1707342639068,-494.48928936,0.0004155,4]
[313432589,1707342639451,-10955.6064418,0.00041551,2]
[313432590,1707342639461,-1015.25396605,0.00041552,4]
[313432591,1707342639470,-151.52,0.00041553,2]
[313432592,1707342639479,-1855.49745169,0.00041792,11]
[313432593,1707342639488,-252.1938,0.00041802,2]
[313432594,1707342639497,-1855.49745169,0.00041889,11]
[313432595,1707342639507,-3710.99490338,0.0004189,11]
[313432596,1707342639516,-3710.99490338,0.00041892,11]
[313432597,1707342639525,-7128.15522643,0.00041899,5]
[313432598,1707342639534,-14679.00163838,0.000419,30]
[313432599,1707342639543,-5725.8,0.00041902,2]
[313432600,1707342639552,-2815.2,0.00041902,2]
[313432601,1707342639562,-2217.80427165,0.00042,4]
[313432602,1707342639572,-568.55,0.00042039,2]
[313432603,1707342639582,-168.2,0.00042077,2]
[313432604,1707342639591,-154.28105727,0.00042277,2]
[313432605,1707342639600,-206.81,0.00042524,2]
[313432606,1707342639610,-152.74,0.000428,4]
[313432607,1707342639619,-152.74,0.000428,4]
[313432608,1707342639628,-152.74,0.000428,4]
[313432609,1707342639637,-152.74,0.000428,4]
[313432610,1707342639647,-152.74,0.000428,4]
[313432611,1707342639656,-152.74,0.000428,4]
[313432612,1707342639666,-152.74,0.000428,4]
[313432613,1707342639675,-1521.73096068,0.00042864,15]
[313432614,1707342639684,-1855.49745169,0.00042954,11]
[313432615,1707342639693,-299.38367405,0.00042963,11]
[313432616,1707342639703,-800.0,0.00043,3]
[313432617,1707342639712,-233.19,0.0004312,2]
[313432618,1707342639721,-154.28105727,0.00043129,2]
[313432619,1707342639731,-283.0,0.0004379,2]
[313432620,1707342639740,-1000.0,0.00043795,2]
[313432621,1707342639750,-1051.26,0.00043836,15]
[313432622,1707342639759,-1855.49745169,0.00043885,11]
[313432623,1707342639768,-1855.49745169,0.00043886,11]
[313432624,1707342639778,-4892.83215428,0.00043895,2]
[313432625,1707342639787,-5422.70391711,0.00043896,4]
[313432626,1707342639797,-154.28105727,0.00043981,2]
[313432628,1707342639806,-1313.81319299,0.00043985,11]
[313432629,1707342639821,-541.6842587,0.00043985,11]
[313432630,1707342639830,-968.69811089,0.00043995,4]
[313432631,1707342639839,-437.45261028,0.00043995,4]
[313432632,1707342639849,-3408.52114293,0.00043995,4]
[313432633,1707342639858,-296.47071973,0.00043995,4]
[313432635,1707342639868,-500.0,0.00043995,4]
[313432637,1707342639877,-933.36690806,0.00043995,4]
[313432638,1707342639888,-1501.0,0.0004419,2]
[313432639,1707342639898,-1855.49745169,0.00044283,12]
[313432640,1707342639907,-7421.98980676,0.00044284,12]
[313432641,1707342639916,-2048.783,0.00044294,2]
[313432642,1707342639926,-359.32,0.00044294,2]
[313432643,1707342639935,-19818.306,0.00044294,2]
[313432644,1707342639944,-1745.584,0.00044294,2]
[313432645,1707342639954,-2284.0,0.00044294,2]
[313432646,1707342639963,-568.55,0.00044302,2]
[313432647,1707342639972,-170.61975319,0.00044424,6]
[313432648,1707342639982,-168.2,0.00044707,2]
[313432649,1707342639991,-151.52,0.00044749,2]
[313432650,1707342640001,-150.0,0.00044785,30]
[313432651,1707342640011,-154.28105727,0.00044834,2]
[313432652,1707342640020,-1855.49745169,0.00044889,12]
[313432653,1707342640030,-5566.49235507,0.0004489,12]
[313432654,1707342640039,-1282.0,0.0004489,2]
[313432655,1707342640049,-246.0,0.0004489,2]
[313432656,1707342640059,-5000.0,0.00044899,5]
[313432657,1707342640068,-7352.96826988,0.000449,2]
[313432658,1707342640081,-13583.44823012,0.000449,2]
[313432659,1707342640091,-607.02650712,0.000449,5]
[313432660,1707342640101,-1855.49745169,0.00044969,12]
[313432661,1707342640110,-1725.0,0.00044979,2]
[313432662,1707342640120,-168.92916761,0.00045,7]
[313432663,1707342640129,-850.0,0.00045,3]
[313432664,1707342640139,-167.0,0.00045154,2]
[313432665,1707342640151,-1000.0,0.000452,2]
[313432666,1707342640161,-299.38367405,0.00045272,12]
[313432667,1707342640171,-154.28105727,0.00045686,2]
[313432668,1707342640181,-283.1821562,0.00046027,2]
[313432669,1707342640190,-150.0,0.0004615,2]
[313432670,1707342640200,-607.02650711,0.00046479,5]
[313432671,1707342640210,-154.28105727,0.00046539,2]
[313432672,1707342640220,-568.55,0.00046566,2]